{"text_format":"1","workbook":"xlsx","n_sheets":3,"sheets":["Despesas elegíveis","Benefício fiscal","Alerta"],"not_rendered":{"charts":0,"images":2,"macros":1,"external_links":0,"defined_names":3,"comments":0,"pivot_tables":0},"unopened":[],"bounds":{"document_bytes":16777216,"sheet_cells":100000,"rows_first":2000,"rows_last":500,"rows_between":2000,"halvings":0,"cell_chars":16384,"cell_head_chars":4096},"cells_cut":0,"cells_raw":0,"read":"whole","date_system":"1900"}

{"sheet":"Despesas elegíveis","index":0,"n_rows":9,"n_cols":9,"rows_kept":9,"cut":false,"hidden":true,"merged":[[6,0,6,4],[0,0,0,8],[7,11,7,13],[7,0,7,5],[1,0,1,4],[2,0,2,4],[3,0,3,4],[4,0,4,4],[5,0,5,4]]}
[]
["Total do investimento",null,null,null,null,{"$f":"SUM(F10:F30005)","v":0},"Ativo fixo tangível"]
[{"$f":"_xlfn.CONCAT(\"0\",DAY(H3),\"/\",IF(MONTH(H3)<10,\"0\",\"\"),MONTH(H3),\"/\",YEAR(H3),\" a \",DAY(I3),\"/\",IF(MONTH(I3)<10,\"0\",\"\"),MONTH(I3),\"/\",YEAR(I3))","v":"01/01/2019 a 31/12/2019"},null,null,null,null,{"$f":"SUMIFS($F$10:$F$30005,$D$10:$D$30005,\">=\"&H3,$D$10:$D$30005,\"<=\"&I3)","v":0},"Ativo biológico de produção",{"$f":"DATE(2019,$H$7,1)","v":"2019-01-01"},{"$f":"EDATE(H3,12)-1","v":"2019-12-31"}]
[{"$f":"_xlfn.CONCAT(\"0\",DAY(H4),\"/\",IF(MONTH(H4)<10,\"0\",\"\"),MONTH(H4),\"/\",YEAR(H4),\" a \",DAY(I4),\"/\",IF(MONTH(I4)<10,\"0\",\"\"),MONTH(I4),\"/\",YEAR(I4))","v":"01/01/2020 a 31/12/2020"},null,null,null,null,{"$f":"SUMIFS($F$10:$F$30005,$D$10:$D$30005,\">=\"&H4,$D$10:$D$30005,\"<=\"&I4)","v":0},"Ativo intangível",{"$f":"DATE(2020,$H$7,1)","v":"2020-01-01"},{"$f":"EDATE(H4,12)-1","v":"2020-12-31"}]
["01/01/2021 a 31/12/2021",null,null,null,null,{"$f":"SUMIFS($F$10:$F$30005,$D$10:$D$30005,\">=\"&H5,$D$10:$D$30005,\"<=\"&I5)","v":0},null,{"$f":"DATE(2021,$H$7,1)","v":"2021-01-01"},"2021-12-31"]
["01/01/2022 a 31/12/2022",null,null,null,null,{"$f":"SUMIFS($F$10:$F$30005,$D$10:$D$30005,\">=\"&H6,$D$10:$D$30005,\"<=\"&I6)","v":0},null,{"$f":"DATE(2022,$H$7,1)","v":"2022-01-01"},"2022-12-31"]
[{"$f":"_xlfn.CONCAT(\"0\",DAY(G8),\"/\",IF(MONTH(G8)<10,\"0\",\"\"),MONTH(G8),\"/\",YEAR(G8),\" a \",DAY(G7),\"/\",IF(MONTH(G7)<10,\"0\",\"\"),MONTH(G7),\"/\",YEAR(G7))","v":"01/07/2022 a 31/12/2022"},null,null,null,null,{"$f":"IF(SUMIFS(F10:F30005,D10:D30005,\">=\"&G8,D10:D30005,\"<=\"&G7,E10:E30005,\"<=\"&G7)>5000000,5000000,SUMIFS(F10:F30005,D10:D30005,\">=\"&G8,D10:D30005,\"<=\"&G7,E10:E30005,\"<=\"&G7))","v":0},{"$f":"EDATE(G8,6)-1","v":"2022-12-31"},{"$f":"IF('Benefício fiscal'!P24=\"Janeiro\",1,IF('Benefício fiscal'!P24=\"Fevereiro\",2,IF('Benefício fiscal'!P24=\"Março\",3,IF('Benefício fiscal'!P24=\"Abril\",4,IF('Benefício fiscal'!P24=\"Maio\",5,IF('Benefício fiscal'!P24=\"Junho\",6,IF('Benefício fiscal'!P24=\"Julho\",7,IF('Benefício fiscal'!P24=\"Agosto\",8,IF('Benefício fiscal'!P24=\"Setembro\",9,IF('Benefício fiscal'!P24=\"Outubro\",10,IF('Benefício fiscal'!P24=\"Novembro\",11,IF('Benefício fiscal'!P24=\"Dezembro\",12,1))))))))))))","v":1},{"$f":"DAY(G7)","v":31}]
["Itens do ativo",null,null,null,null,null,{"$f":"IF('Benefício fiscal'!P20>DATE(2022,H7+6,1),'Benefício fiscal'!P20,DATE(2022,H7+6,1))","v":"2022-07-01"},{"$f":"H7+11","v":12}]
["Descrição","Tipo de Ativo","Fatura","Data de aquisição","Data de entrada em funcionamento ou utilização","Montante do custo contabilístico"]

{"sheet":"Benefício fiscal","index":1,"n_rows":108,"n_cols":21,"rows_kept":108,"cut":false,"hidden":true,"merged":[[106,1,106,14],[33,1,33,9],[35,1,35,6],[39,1,39,6],[107,1,107,15],[103,1,103,4],[103,5,103,9],[89,5,89,8],[51,1,51,2],[53,1,53,5],[55,1,55,5],[57,1,57,5],[59,1,59,5],[61,1,61,5],[63,1,63,5],[65,1,66,6],[67,1,67,5],[68,1,68,15],[73,6,73,12],[92,1,92,5],[25,17,29,18],[29,1,29,9],[0,1,0,15],[1,1,2,15],[4,2,4,9],[5,2,5,9],[7,1,7,15],[9,1,9,11],[11,1,11,11],[13,1,13,11],[15,1,15,11],[17,1,17,11]]}
[null,null,null,null,null,null,null,null,null,null,null,null,null,null,null,null,null,null,null,"Sim","Janeiro"]
[null,"Simulador do Incentivo Fiscal à Recuperação - 2022",null,null,null,null,null,null,null,null,null,null,null,null,null,null,null,null,null,"Não","Fevereiro"]
[null,null,null,null,null,null,null,null,null,null,null,null,null,null,null,null,null,null,null,null,"Março"]
[null,null,null,null,null,null,null,null,null,null,null,null,null,null,null,null,null,null,null,null,"Abril"]
[null,"Nome:","Nome da Empresa",null,null,null,null,null,null,null,null,null,null,null,null,null,null,null,null,null,"Maio"]
[null,"NIF:","NIF da Empresa",null,null,null,null,null,null,null,null,null,null,null,null,null,null,null,null,null,"Junho"]
[null,null,null,null,null,null,null,null,null,null,null,null,null,null,null,null,null,null,null,null,"Julho"]
[null,"Dados para simulação",null,null,null,null,null,null,null,null,null,null,null,null,null,null,null,null,null,null,"Agosto"]
[null,null,null,null,null,null,null,null,null,null,null,null,null,null,null,null,null,null,null,null,"Setembro"]
[null,"Dispõe de contabilidade regularmente organizada, de acordo com a normalização contabilística e outras disposições legais em vigor para o respetivo setor de atividade?",null,null,null,null,null,null,null,null,null,null,null,null,null,"Não",null,null,null,null,"Outubro"]
[null,null,null,null,null,null,null,null,null,null,null,null,null,null,null,null,null,null,null,null,"Novembro"]
[null,"O seu lucro tributável foi determinado por métodos indiretos?",null,null,null,null,null,null,null,null,null,null,null,null,null,"Sim",null,null,null,null,"Dezembro"]
[]
[null,"Tem a situação tributária regularizada?",null,null,null,null,null,null,null,null,null,null,null,null,null,"Não"]
[]
[null,"Compromete-se a não cessar contratos de trabalho durante três anos, contados do primeiro dia do sétimo mês do período de tributação em que se realizem as despesas de investimento elegíveis, ao abrigo das modalidades de despedimento coletivo ou despedimento por extinção do posto de trabalho, previstos, respetivamente, nos artigos 359.º e seguintes e 367.º e seguintes do Código do Trabalho, aprovado em anexo à Lei n.º 7/2009, de 12 de fevereiro, na sua redação atual?",null,null,null,null,null,null,null,null,null,null,null,null,null,"Não"]
[]
[null,"Compromete-se a não distribuir lucros durante três anos, contados do primeiro dia do sétimo mês do período de tributação em que se realizem as despesas de investimento elegíveis?",null,null,null,null,null,null,null,null,null,null,null,null,null,"Não"]
[]
[null,"Data de início de atividade:",null,null,null,null,null,null,null,null,null,null,null,null,null,"1900-01-01"]
[]
[null,"Período de tributação é coincidente com o ano civil?",null,null,null,null,null,null,null,null,null,null,null,null,null,"Sim"]
[]
[null,"Primeiro mês do período de tributação:",null,null,null,null,null,null,null,null,null,null,null,null,null,"Janeiro"]
[]
[null,null,null,null,null,null,null,null,null,2019,null,2020,null,2021,null,2022]
[]
[null,"Despesas elegíveis",null,null,null,null,null,null,null,0,null,0,null,0,null,0]
[]
[null,"Média (2019, 2020 e 2021)",null,null,null,null,null,null,null,null,null,null,null,0]
[]
[null,"Investimentos elegíveis",null,null,null,null,null,null,null,null,null,null,null,null,null,0]
[]
[null,"Incentivo fiscal à recuperação",null,null,null,null,null,null,null,null,null,null,null,null,null,0]
[]
[]
[]
[]
[]
[null,"Coleta de IRC de 2022",null,null,null,null,null,null,null,null,null,null,null,null,null,0]
[]
[null,"Máximo de benefício fiscal (70% da coleta)",null,null,null,null,null,null,null,null,null,null,null,null,null,0]
[]
[null,"Benefício Fiscal",null,null,null,null,null,null,null,null,null,null,null,null,null,0]
[]
[null,"Controlo da dedução à coleta do incentivo fiscal à recuperação:"]
[]
[null,null,null,null,null,null,null,null,null,"Valor que transitou do período anterior",null,"Dotação do período ",null,"Utilização no período",null,"Valor que transita para o período seguinte"]
[]
[null,null,null,null,null,null,null,null,null,0,null,0,null,0,null,0]
[]
[]
[]
[]
[]
[]
[]
[]
[]
[]
[]
[]
[]
[]
[]
[]
[]
[]
[null,"Não tem acesso ao benefício fiscal"]
[]
[]
[]
[]
[]
[]
[]
[]
[]
[]
[]
[]
[]
[]
[]
[]
[]
[]
[]
[]
[]
[]
[]
[]
[]
[]
[]
[]
[]
[]
[]
[]
[]
[]
[null,"Data de simulação",null,null,null,{"$f":"TODAY()","v":"2022-08-02"}]
[]
[]
[null,null,null,null,null,null,null,null,null,null,null,null,null,null,null,"v 1.2"]
[null,"A Ordem não se responsabiliza por valores incorretos apurados, resultantes de erros na introdução de dados ou na interpretação das normas aplicáveis."]

{"sheet":"Alerta","index":2,"n_rows":13,"n_cols":2,"rows_kept":13,"cut":false,"hidden":false,"merged":[[0,1,0,6],[1,1,1,6],[5,1,5,6],[12,1,13,5]]}
[]
[null,"Simulador"]
[]
[]
[]
[null,"Para utilizar o simulador deverá ativar as macros."]
[]
[]
[]
[]
[]
[]
[null,"Ficheiro compatível apenas com versões posteriores a Microsoft Office Excel 2007 e em formato Livro com Permissão para Macros do Excel (*.xlsm)"]